fUSD/lending_fUSD_20251204
["ID","MTS","AMOUNT","RATE_DAILY","PERIOD"]
[396234474,1764852648200,-500.0,0.00018086,2]
[396234475,1764852648211,-154.08718564,0.00018086,2]
[396234476,1764852648226,-3185.0,0.0001812,2]
[396234477,1764852648237,-20261.20829054,0.00018161,2]
[396234478,1764852648249,-11762.42367188,0.00018211,2]
[396234479,1764852648260,-150.0,0.00018219,2]
[396234480,1764852648270,-500.0,0.00018223,2]
[396234481,1764852648280,-297.80864712,0.00018223,2]
[396234482,1764852648290,-500.0,0.00018223,2]
[396234483,1764852648300,-301.23798276,0.00018223,2]
[396234484,1764852648311,-500.0,0.00018223,2]
[396234485,1764852648322,-221.36909314,0.00018223,2]
[396234486,1764852648332,-448.0,0.00018223,2]
[396234487,1764852648344,-584.0,0.00018223,2]
[396234488,1764852648355,-500.0,0.00018223,2]
[396234489,1764852648364,-500.0,0.00018233,2]
[396234490,1764852648375,-157.75281607,0.0001825,2]
[396234491,1764852648384,-189.51838586,0.00018253,2]
[396234492,1764852648394,-600.0,0.00018344,2]
[396234493,1764852648404,-150.0,0.00018356,2]
[396234494,1764852648414,-1558.92,0.00018359,2]
[396234495,1764852648424,-500.0,0.0001836,2]
[396234496,1764852648434,-500.0,0.0001836,2]
[396234497,1764852648443,-500.0,0.0001836,2]
[396234498,1764852648454,-448.0,0.0001836,2]
[396234499,1764852648464,-584.0,0.0001836,2]
[396234500,1764852648477,-500.0,0.0001836,2]
[396234501,1764852648487,-500.0,0.0001836,2]
[396234502,1764852648497,-150.0,0.0001836,2]
[396234503,1764852648513,-500.0,0.0001836,2]
[396234504,1764852648524,-500.0,0.0001836,2]
[396234505,1764852648535,-150.0,0.0001836,2]
[396234506,1764852648546,-500.0,0.0001837,2]
[396234507,1764852648556,-150.17113883,0.00018373,2]
[396234508,1764852648567,-11762.42367188,0.00018441,2]
[396234509,1764852648577,-20261.20829054,0.00018455,2]
[396234510,1764852648589,-229.59889414,0.00018493,2]
[396234511,1764852648599,-500.0,0.00018493,2]
[396234512,1764852648608,-150.0,0.00018493,2]
[396234513,1764852648620,-500.0,0.00018493,2]
[396234514,1764852648635,-500.0,0.00018497,2]
[396234515,1764852648645,-500.0,0.00018497,2]
[396234516,1764852648656,-500.0,0.00018497,2]
[396234517,1764852648666,-448.0,0.00018497,2]
[396234518,1764852648677,-584.0,0.00018497,2]
[396234519,1764852648688,-453.80055729,0.00018497,2]
[396234520,1764852648698,-500.0,0.00018497,2]
[396234521,1764852648709,-150.0,0.00018497,2]
[396234522,1764852648719,-500.0,0.00018497,2]
[396234523,1764852648730,-500.0,0.00018497,2]
[396234524,1764852648742,-150.0,0.00018497,2]
[396234525,1764852648753,-500.0,0.00018507,2]
[396234526,1764852648763,-166.66,0.00018508,2]
[396234527,1764852648773,-9999.99,0.00018533,2]
[396234528,1764852648783,-300.0,0.00018565,2]
[396234529,1764852648793,-500.0,0.0001863,2]
[396234530,1764852648803,-150.0,0.0001863,2]
[396234531,1764852648813,-500.0,0.0001863,2]
[396234532,1764852648825,-1558.92,0.00018633,2]
[396234533,1764852648835,-500.0,0.00018634,2]
[396234534,1764852648844,-500.0,0.00018634,2]
[396234535,1764852648854,-500.0,0.00018634,2]
[396234536,1764852648865,-448.0,0.00018634,2]
[396234537,1764852648876,-584.0,0.00018634,2]
[396234538,1764852648886,-500.0,0.00018634,2]
[396234539,1764852648896,-150.0,0.00018634,2]
[396234540,1764852648907,-500.0,0.00018634,2]
[396234541,1764852649121,-500.0,0.00018634,2]
[396234542,1764852649132,-162.22426771,0.00018634,2]
[396234543,1764852649143,-270.52785935,0.00018644,2]
[396234544,1764852649152,-11762.42367188,0.00018671,2]
[396234545,1764852649162,-300.0,0.00018692,2]
[396234546,1764852649171,-300.0,0.00018692,2]
[396234547,1764852649181,-151.0,0.00018693,2]
[396234548,1764852649191,-500.0,0.00018693,2]
[396234549,1764852649201,-500.0,0.00018693,2]
[396234550,1764852649211,-672.23794397,0.00018693,2]
[396234551,1764852649221,-500.0,0.00018693,2]
[396234552,1764852649230,-831.74465798,0.00018693,2]
[396234553,1764852649240,-500.0,0.00018693,2]
[396234554,1764852649251,-280.9463541,0.00018693,2]
[396234555,1764852649263,-151.0,0.00018693,2]
[396234556,1764852649273,-500.0,0.00018693,2]
[396234557,1764852649283,-500.0,0.00018693,2]
[396234558,1764852649293,-500.0,0.00018693,2]
[396234559,1764852649304,-151.0,0.00018693,2]
[396234560,1764852649313,-500.0,0.00018693,2]
[396234561,1764852649323,-500.0,0.00018693,2]
[396234562,1764852649333,-311.1,0.00018693,2]
[396234563,1764852649342,-500.0,0.00018693,2]
[396234564,1764852649352,-500.0,0.00018693,2]
[396234565,1764852649362,-500.0,0.00018693,2]
[396234566,1764852649371,-500.0,0.00018693,2]
[396234567,1764852649381,-574.12855637,0.00018693,2]
[396234568,1764852649391,-2000.0,0.00018693,2]
[396234569,1764852649400,-1303.83089546,0.00018693,2]
[396234570,1764852649410,-1000.0,0.00018693,2]
[396234571,1764852649419,-1000.0,0.00018693,2]
[396234572,1764852649429,-1000.0,0.00018693,2]
[396234573,1764852649438,-1000.0,0.00018693,2]
[396234574,1764852649448,-1000.0,0.00018693,2]
[396234575,1764852649457,-1000.0,0.00018693,2]
[396234576,1764852649471,-1000.0,0.00018693,2]
[396234577,1764852649480,-500.0,0.00018693,2]
[396234578,1764852649489,-1000.0,0.00018693,2]
[396234579,1764852649498,-500.0,0.00018693,2]
[396234580,1764852649508,-1000.0,0.00018693,2]
[396234581,1764852649518,-1000.0,0.00018693,2]
[396234582,1764852649527,-2340.0,0.00018693,2]
[396234583,1764852649536,-1000.0,0.00018693,2]
[396234584,1764852649546,-250.0,0.00018693,2]
[396234585,1764852649555,-250.0,0.00018693,2]
[396234586,1764852649567,-250.0,0.00018693,2]
[396234587,1764852649577,-500.0,0.00018693,2]
[396234588,1764852649586,-250.0,0.00018693,2]
[396234589,1764852649599,-615.64593565,0.00018693,2]
[396234590,1764852649608,-250.0,0.00018693,2]
[396234591,1764852649618,-191.35239521,0.00018693,2]
[396234592,1764852649628,-880.97458729,0.00018693,2]
[396234593,1764852649638,-277.35679052,0.00018693,2]
[396234594,1764852649647,-300.0,0.00018693,2]
[396234595,1764852649657,-599.60298507,0.00018693,2]
[396234596,1764852649667,-20261.20829054,0.00018748,2]
[396234597,1764852649677,-3830.08918914,0.00018757,2]
[396234598,1764852649686,-818.77,0.0001876,2]
[396234599,1764852649696,-500.0,0.00018767,2]
[396234600,1764852649705,-150.0,0.00018767,2]
[396234601,1764852649715,-500.0,0.00018767,2]
[396234602,1764852649724,-396.0,0.00018771,2]
[396234603,1764852649733,-400.0,0.00018771,2]
[396234604,1764852649743,-500.0,0.00018771,2]
[396234605,1764852649752,-448.0,0.00018771,2]
[396234606,1764852649762,-584.0,0.00018771,2]
[396234607,1764852649771,-500.0,0.00018771,2]
[396234608,1764852649783,-150.0,0.00018771,2]
[396234609,1764852649793,-500.0,0.00018771,2]
[396234610,1764852649804,-202.33281575,0.00018771,2]
[396234611,1764852649815,-300.0,0.00018788,2]
[396234612,1764852649825,-300.0,0.00018788,2]
[396234613,1764852649836,-3444.0,0.00018789,2]
[396234614,1764852649845,-1322.0,0.00018789,2]
[396234615,1764852649854,-1609.562,0.00018789,2]
[396234616,1764852649864,-618.937,0.00018789,2]
[396234617,1764852649875,-1259.0,0.00018789,2]
[396234618,1764852649885,-656.445,0.00018789,2]
[396234619,1764852649895,-263.091,0.00018789,2]
[396234620,1764852649905,-318.211,0.00018789,2]
[396234621,1764852649916,-4706.0,0.00018789,2]
[396234622,1764852649927,-6510.0,0.00018789,2]
[396234623,1764852649938,-562.0,0.00018789,2]
[396234624,1764852649948,-150.8,0.000188,2]
[396234625,1764852649958,-150.8,0.000188,2]
[396234626,1764852649969,-150.8,0.000188,2]
[396234627,1764852649978,-150.8,0.000188,2]
[396234628,1764852649988,-150.8,0.000188,2]
[396234629,1764852649998,-150.8,0.000188,2]
[396234630,1764852650008,-150.8,0.000188,2]
[396234631,1764852650018,-150.8,0.000188,2]
[396234632,1764852650029,-150.8,0.000188,2]
[396234633,1764852650038,-150.8,0.000188,2]
[396234634,1764852650047,-150.8,0.000188,2]
[396234635,1764852650056,-150.8,0.000188,2]
[396234636,1764852650067,-150.8,0.000188,2]
[396234637,1764852650078,-150.8,0.000188,2]
[396234638,1764852650088,-150.8,0.000188,2]
[396234639,1764852650098,-150.8,0.000188,2]
[396234640,1764852650107,-150.8,0.000188,2]
[396234641,1764852650116,-150.8,0.000188,2]
[396234642,1764852650126,-150.8,0.000188,2]
[396234643,1764852650135,-150.8,0.000188,2]
[396234644,1764852650144,-150.8,0.000188,2]
[396234645,1764852650154,-150.8,0.000188,2]
[396234646,1764852650163,-150.8,0.000188,2]
[396234647,1764852650173,-150.8,0.000188,2]
[396234648,1764852650182,-150.8,0.000188,2]
[396234649,1764852650191,-150.8,0.000188,2]
[396234650,1764852650201,-150.8,0.000188,2]
[396234651,1764852650210,-150.8,0.000188,2]
[396234652,1764852650219,-150.8,0.000188,2]
[396234653,1764852650229,-150.8,0.000188,2]
[396234654,1764852650239,-150.8,0.000188,2]
[396234655,1764852650248,-150.8,0.000188,2]
[396234656,1764852650258,-150.8,0.000188,2]
[396234657,1764852650267,-480.06109419,0.00018846,2]
[396234658,1764852650276,-600.0,0.00018892,2]
[396234659,1764852650286,-500.0,0.00018904,2]
[396234660,1764852650295,-150.0,0.00018904,2]
[396234661,1764852650304,-500.0,0.00018904,2]
[396234662,1764852650313,-1558.92,0.00018907,2]
[396234663,1764852650323,-500.0,0.00018908,2]
[396234664,1764852650332,-448.0,0.00018908,2]
[396234665,1764852650342,-584.0,0.00018908,2]
[396234666,1764852650351,-500.0,0.00018908,2]
[396234667,1764852650361,-150.0,0.00018908,2]
[396234668,1764852650371,-500.0,0.00018908,2]
[396234669,1764852650380,-47189.0,0.00018932,2]
[396234670,1764852650390,-829.34,0.00018955,2]
[396234671,1764852650400,-300.0,0.00019,2]
[396234672,1764852650410,-199.87,0.00019005,2]
[396234673,1764852650420,-348.16,0.00019008,2]
[396234674,1764852650433,-500.0,0.00019041,2]
[396234675,1764852650443,-150.0,0.00019041,2]
[396234676,1764852650454,-500.0,0.00019041,2]
[396234677,1764852650466,-500.0,0.00019045,2]
[396234678,1764852650478,-448.0,0.00019045,2]
[396234679,1764852650488,-584.0,0.00019045,2]
[396234680,1764852650497,-500.0,0.00019045,2]
[396234681,1764852650507,-152.40128205,0.00019045,2]
[396234682,1764852650518,-500.0,0.00019045,2]
[396234683,1764852650529,-166.66,0.00019048,2]
[396234684,1764852650541,-220.75311086,0.00019082,2]
[396234685,1764852650551,-5800.0,0.00019136,2]
[396234686,1764852650561,-5800.0,0.00019144,2]
[396234687,1764852650572,-300.0,0.00019151,2]
[396234688,1764852650582,-300.0,0.00019151,2]
[396234689,1764852650591,-300.0,0.00019151,2]
[396234690,1764852650600,-151.0,0.00019152,2]
[396234691,1764852650609,-151.0,0.00019152,2]
[396234692,1764852650618,-114405.1522267,0.00019152,2]
[396234693,1764852650628,-5800.0,0.00019153,2]
[396234694,1764852650641,-5800.0,0.00019161,2]
[396234695,1764852650651,-5800.0,0.0001917,2]
[396234696,1764852650661,-762.5964451,0.00019171,2]
[396234697,1764852650672,-305.96646881,0.00019177,2]
[396234698,1764852650684,-300.0,0.00019177,2]
[396234699,1764852650694,-300.0,0.00019177,2]
[396234700,1764852650705,-300.0,0.00019177,2]
[396234701,1764852650716,-200.65111901,0.00019177,2]
[396234702,1764852650727,-500.0,0.00019178,2]
[396234703,1764852650736,-152.76480098,0.00019178,2]
[396234704,1764852650747,-500.0,0.00019178,2]
[396234705,1764852650756,-5800.0,0.00019178,2]
[396234706,1764852650767,-151.0,0.00019178,2]
[396234707,1764852650776,-151.0,0.00019178,2]
[396234708,1764852650787,-2432.48,0.00019178,2]
[396234709,1764852650797,-2432.48,0.00019178,2]
[396234710,1764852650809,-2432.48,0.00019178,2]
[396234711,1764852650819,-2432.48,0.00019178,2]
[396234712,1764852650828,-2432.48,0.00019178,2]
[396234713,1764852650838,-2432.48,0.00019178,2]
[396234714,1764852650847,-2432.48,0.00019178,2]
[396234715,1764852650858,-2432.48,0.00019178,2]
[396234716,1764852650868,-2432.48,0.00019178,2]
[396234717,1764852650877,-2432.48,0.00019178,2]
[396234718,1764852650887,-2432.48,0.00019178,2]
[396234719,1764852650898,-2432.48,0.00019178,2]
[396234720,1764852650908,-2432.48,0.00019178,2]
[396234721,1764852650917,-2432.48,0.00019178,2]
[396234722,1764852650927,-2432.48,0.00019178,2]
[396234723,1764852650936,-2432.48,0.00019178,2]
[396234724,1764852650945,-2432.48,0.00019178,2]
[396234725,1764852650955,-2432.48,0.00019178,2]
[396234726,1764852650967,-2432.48,0.00019178,2]
[396234727,1764852650976,-2432.48,0.00019178,2]
[396234728,1764852650985,-2432.48,0.00019178,2]
[396234729,1764852650995,-2432.48,0.00019178,2]
[396234730,1764852651005,-2432.48,0.00019178,2]
[396234731,1764852651015,-2432.60433862,0.00019178,2]
[396234732,1764852651024,-3008.5532171,0.00019178,2]
[396234733,1764852651033,-151.0,0.00019178,2]
[396234734,1764852651042,-151.0,0.00019178,2]
[396234735,1764852651051,-236.652457,0.00019178,2]
[396234736,1764852651060,-151.0,0.00019178,2]
[396234737,1764852651069,-151.0,0.00019178,2]
[396234738,1764852651079,-151.0,0.00019178,2]
[396234739,1764852651089,-151.0,0.00019178,2]
[396234740,1764852651099,-151.0,0.00019178,2]
[396234741,1764852651108,-151.0,0.00019178,2]
[396234742,1764852651117,-253.26643,0.00019178,2]
[396234743,1764852651126,-151.0,0.00019178,2]
[396234744,1764852651137,-193.91739,0.00019178,2]
[396234745,1764852651146,-153.721708,0.00019178,2]
[396234746,1764852651155,-151.0,0.00019178,2]
[396234747,1764852651165,-151.0,0.00019178,2]
[396234748,1764852651175,-151.0,0.00019178,2]
[396234749,1764852651184,-151.0,0.00019178,2]
[396234750,1764852651194,-151.0,0.00019178,2]
[396234751,1764852651203,-177.801643,0.00019178,2]
[396234752,1764852651213,-749.455498,0.00019178,2]
[396234753,1764852651222,-749.455498,0.00019178,2]
[396234754,1764852651232,-161.191286,0.00019178,2]
[396234755,1764852651241,-749.455498,0.00019178,2]
[396234756,1764852651251,-749.455498,0.00019178,2]
[396234757,1764852651260,-749.455498,0.00019178,2]
[396234758,1764852651270,-749.455498,0.00019178,2]
[396234759,1764852651279,-749.455498,0.00019178,2]
[396234760,1764852651288,-749.455498,0.00019178,2]
[396234761,1764852651298,-191.908777,0.00019178,2]
[396234762,1764852651307,-191.908777,0.00019178,2]
[396234763,1764852651317,-191.908777,0.00019178,2]
[396234764,1764852651326,-191.908777,0.00019178,2]
[396234765,1764852651335,-191.908777,0.00019178,2]
[396234766,1764852651346,-191.908777,0.00019178,2]
[396234767,1764852651356,-191.908777,0.00019178,2]
[396234768,1764852651366,-191.908777,0.00019178,2]
[396234769,1764852651375,-191.908777,0.00019178,2]
[396234770,1764852651386,-191.908777,0.00019178,2]
[396234771,1764852651396,-191.908777,0.00019178,2]
[396234772,1764852651405,-191.908777,0.00019178,2]
[396234773,1764852651415,-645.41281,0.00019178,2]
[396234774,1764852651424,-645.41281,0.00019178,2]
[396234775,1764852651434,-645.41281,0.00019178,2]
[396234776,1764852651443,-645.41281,0.00019178,2]
[396234777,1764852651452,-645.41281,0.00019178,2]
[396234778,1764852651462,-645.41281,0.00019178,2]
[396234779,1764852651473,-645.41281,0.00019178,2]
[396234780,1764852651483,-645.41281,0.00019178,2]
[396234781,1764852651492,-645.41281,0.00019178,2]
[396234782,1764852651501,-645.41281,0.00019178,2]
[396234783,1764852651511,-645.41281,0.00019178,2]
[396234784,1764852651521,-645.41281,0.00019178,2]
[396234785,1764852651530,-2566.394678,0.00019178,2]
[396234786,1764852651539,-2566.394678,0.00019178,2]
[396234787,1764852651551,-2566.394678,0.00019178,2]
[396234788,1764852651561,-2566.394678,0.00019178,2]
[396234789,1764852651570,-2566.394678,0.00019178,2]
[396234790,1764852651580,-2566.394678,0.00019178,2]
[396234791,1764852651589,-2566.394678,0.00019178,2]
[396234792,1764852651599,-2566.394678,0.00019178,2]
[396234793,1764852651610,-2566.394678,0.00019178,2]
[396234794,1764852651619,-2566.394678,0.00019178,2]
[396234795,1764852651630,-2566.394678,0.00019178,2]
[396234796,1764852651640,-2566.394678,0.00019178,2]
[396234797,1764852651650,-151.0,0.00019178,2]
[396234798,1764852651660,-151.0,0.00019178,2]
[396234799,1764852651670,-151.0,0.00019178,2]
[396234800,1764852651679,-151.0,0.00019178,2]
[396234801,1764852651689,-240.236779,0.00019178,2]
[396234802,1764852651698,-240.236779,0.00019178,2]
[396234803,1764852651708,-240.236779,0.00019178,2]
[396234804,1764852651717,-240.236779,0.00019178,2]
[396234805,1764852651726,-240.236779,0.00019178,2]
[396234806,1764852651737,-240.236779,0.00019178,2]
[396234807,1764852651747,-240.236779,0.00019178,2]
[396234808,1764852651756,-240.236779,0.00019178,2]
[396234809,1764852651765,-151.0,0.00019178,2]
[396234810,1764852651774,-240.236779,0.00019178,2]
[396234811,1764852651783,-203.154721,0.00019178,2]
[396234812,1764852651794,-240.236779,0.00019178,2]
[396234813,1764852651804,-240.236779,0.00019178,2]
[396234814,1764852651813,-240.236779,0.00019178,2]
[396234815,1764852651823,-151.0,0.00019178,2]
[396234816,1764852651832,-151.0,0.00019178,2]
[396234817,1764852651842,-191.263587,0.00019178,2]
[396234818,1764852651852,-240.410375,0.00019178,2]
[396234819,1764852651863,-195.183644,0.00019178,2]
[396234820,1764852651873,-209.94573,0.00019178,2]
[396234821,1764852651883,-209.94573,0.00019178,2]
[396234822,1764852651893,-209.94573,0.00019178,2]
[396234823,1764852651903,-209.94573,0.00019178,2]
[396234824,1764852651914,-209.94573,0.00019178,2]
[396234825,1764852651925,-209.94573,0.00019178,2]
[396234826,1764852651936,-209.94573,0.00019178,2]
[396234827,1764852651946,-209.94573,0.00019178,2]
[396234828,1764852651957,-209.94573,0.00019178,2]
[396234829,1764852651967,-209.94573,0.00019178,2]
[396234830,1764852651977,-209.94573,0.00019178,2]
[396234831,1764852651987,-209.94573,0.00019178,2]
[396234832,1764852651996,-153.253836,0.00019178,2]
[396234833,1764852652006,-151.447079,0.00019178,2]
[396234834,1764852652016,-151.60176,0.00019178,2]
[396234835,1764852652025,-151.0,0.00019178,2]
[396234836,1764852652036,-151.0,0.00019178,2]
[396234837,1764852652048,-151.0,0.00019178,2]
[396234838,1764852652059,-151.0,0.00019178,2]
[396234839,1764852652071,-151.0,0.00019178,2]
[396234840,1764852652083,-151.0,0.00019178,2]
[396234841,1764852652094,-151.0,0.00019178,2]
[396234842,1764852652104,-151.0,0.00019178,2]
[396234843,1764852652114,-156.891547,0.00019178,2]
[396234844,1764852652124,-385.286627,0.00019178,2]
[396234845,1764852652134,-385.286627,0.00019178,2]
[396234846,1764852652144,-385.286627,0.00019178,2]
[396234847,1764852652155,-152.721054,0.00019178,2]
[396234848,1764852652165,-385.286627,0.00019178,2]
[396234849,1764852652175,-385.286627,0.00019178,2]
[396234850,1764852652185,-385.286627,0.00019178,2]
[396234851,1764852652195,-385.286627,0.00019178,2]
[396234852,1764852652204,-385.286627,0.00019178,2]
[396234853,1764852652215,-158.135359,0.00019178,2]
[396234854,1764852652226,-385.286627,0.00019178,2]
[396234855,1764852652236,-385.286627,0.00019178,2]
[396234856,1764852652245,-385.286627,0.00019178,2]
[396234857,1764852652255,-385.286627,0.00019178,2]
[396234858,1764852652411,-156.598035,0.00019178,2]
[396234859,1764852652421,-151.0,0.00019178,2]
[396234860,1764852652432,-151.0,0.00019178,2]
[396234861,1764852652442,-151.0,0.00019178,2]
[396234862,1764852652452,-151.0,0.00019178,2]
[396234863,1764852652463,-151.0,0.00019178,2]
[396234864,1764852652479,-151.0,0.00019178,2]
[396234865,1764852652490,-151.0,0.00019178,2]
[396234866,1764852652499,-151.0,0.00019178,2]
[396234867,1764852652508,-151.0,0.00019178,2]
[396234868,1764852652518,-158.230887,0.00019178,2]
[396234869,1764852652528,-151.0,0.00019178,2]
[396234870,1764852652538,-151.0,0.00019178,2]
[396234871,1764852652552,-151.0,0.00019178,2]
[396234872,1764852652562,-151.870565,0.00019178,2]
[396234873,1764852652571,-6003.327466,0.00019178,2]
[396234874,1764852652580,-6003.327466,0.00019178,2]
[396234875,1764852652591,-6003.327466,0.00019178,2]
[396234876,1764852652600,-6003.327466,0.00019178,2]
[396234877,1764852652610,-6003.327466,0.00019178,2]
[396234878,1764852652619,-6003.327466,0.00019178,2]
[396234879,1764852652629,-6003.327466,0.00019178,2]
[396234880,1764852652639,-6003.327466,0.00019178,2]
[396234881,1764852652650,-6003.327466,0.00019178,2]
[396234882,1764852652659,-6003.327466,0.00019178,2]
[396234883,1764852652670,-6003.327466,0.00019178,2]
[396234884,1764852652679,-6003.327466,0.00019178,2]
[396234885,1764852652688,-1558.92,0.00019181,2]
[396234886,1764852652698,-500.0,0.00019182,2]
[396234887,1764852652708,-448.0,0.00019182,2]
[396234888,1764852652718,-584.0,0.00019182,2]
[396234889,1764852652727,-500.0,0.00019182,2]
[396234890,1764852652737,-500.0,0.00019182,2]
[396234891,1764852652747,-151.0,0.00019241,2]
[396234892,1764852652757,-151.0,0.00019241,2]
[396234893,1764852652767,-595.37131296,0.00019241,2]
[396234894,1764852652777,-2340.0,0.00019241,2]
[396234895,1764852652786,-157.75281607,0.00019264,2]
[396234896,1764852652796,-348.16,0.00019282,2]
[396234897,1764852652805,-500.0,0.00019315,2]
[396234898,1764852652814,-500.0,0.00019315,2]
[396234899,1764852652824,-500.0,0.00019319,2]
[396234900,1764852652834,-448.0,0.00019319,2]
[396234901,1764852652844,-584.0,0.00019319,2]
[396234902,1764852652853,-500.0,0.00019319,2]
[396234903,1764852652863,-500.0,0.00019319,2]
[396234904,1764852652873,-1639.25827028,0.00019399,2]
[396234905,1764852652882,-307.446999,0.00019429,2]
[396234906,1764852652891,-818.77,0.00019438,2]
[396234907,1764852652901,-600.0,0.0001944,2]
[396234908,1764852652912,-472.75252993,0.00019452,2]
[396234909,1764852652921,-500.0,0.00019452,2]
[396234910,1764852652931,-1558.92,0.00019455,2]
[396234911,1764852652942,-154.87464765,0.00019456,2]
[396234912,1764852652953,-448.0,0.00019456,2]
[396234913,1764852652964,-584.0,0.00019456,2]
[396234914,1764852652974,-500.0,0.00019456,2]
[396234915,1764852652984,-500.0,0.00019456,2]
[396234916,1764852652996,-151.0,0.00019533,2]
[396234917,1764852653006,-151.0,0.00019533,2]
[396234918,1764852653015,-151.0,0.00019533,2]
[396234919,1764852653025,-151.0,0.00019533,2]
[396234920,1764852653034,-151.0,0.00019533,2]
[396234921,1764852653044,-749.455498,0.00019533,2]
[396234922,1764852653054,-749.455498,0.00019533,2]
[396234923,1764852653064,-749.455498,0.00019533,2]
[396234924,1764852653073,-749.455498,0.00019533,2]
[396234925,1764852653083,-14923.0,0.00019533,2]
[396234926,1764852653093,-348.17,0.00019556,2]
[396234927,1764852653102,-500.0,0.00019589,2]
[396234928,1764852653112,-448.0,0.00019593,2]
[396234929,1764852653122,-584.0,0.00019593,2]
[396234930,1764852653131,-354.86059815,0.00019593,2]
[396234931,1764852653141,-250.0,0.00019593,2]
[396234932,1764852653151,-151.0,0.00019622,2]
[396234933,1764852653160,-25527.2399381,0.00019633,2]
[396234934,1764852653170,-170.1582669,0.00019655,2]
[396234935,1764852653179,-500.0,0.00019726,2]
[396234936,1764852653188,-156.587,0.00019726,2]
[396234937,1764852653198,-1558.92,0.00019729,2]
[396234938,1764852653208,-448.0,0.0001973,2]
[396234939,1764852653218,-584.0,0.0001973,2]
[396234940,1764852653228,-169.7247328,0.00019758,2]
[396234941,1764852653239,-151.0,0.00019789,2]
[396234942,1764852653248,-151.0,0.00019789,2]
[396234943,1764852653258,-617.40005154,0.00019789,2]
[396234944,1764852653268,-2340.0,0.00019789,2]
[396234945,1764852653278,-460.60034226,0.00019863,2]
[396234946,1764852653287,-448.0,0.00019867,2]
[396234947,1764852653296,-584.0,0.00019867,2]
[396234948,1764852653305,-294.17220385,0.000199,2]
[396234949,1764852653315,-829.58344223,0.000199,2]
[396234950,1764852653324,-151.29932748,0.00019973,2]
[396234951,1764852653333,-600.0,0.00019988,2]
[396234952,1764852653343,-2000.0,0.0002,2]
[396234953,1764852653353,-200.0,0.0002,2]
[396234954,1764852653363,-1558.93226699,0.00020003,2]
[396234955,1764852653373,-448.0,0.00020004,2]
[396234956,1764852653383,-584.0,0.00020004,2]
[396234957,1764852653392,-199.87,0.0002005,2]
[396234958,1764852653402,-322.6107,0.00020062,2]
[396234959,1764852653412,-287.61899177,0.00020062,2]
[396234960,1764852653421,-311.1,0.00020062,2]
[396234961,1764852653431,-818.77,0.00020116,2]
[396234962,1764852653440,-448.0,0.00020141,2]
[396234963,1764852653449,-584.0,0.00020141,2]
[396234964,1764852653459,-588.16,0.00020187,2]
[396234965,1764852653470,-162.380719,0.00020274,2]
[396234966,1764852653480,-310.63246682,0.00020278,2]
[396234967,1764852653490,-606.64917893,0.00020278,2]
[396234968,1764852653500,-157.75281607,0.00020278,2]
[396234969,1764852653509,-28259.747411,0.00020317,2]
[396234970,1764852653519,-151.0,0.00020337,2]
[396234971,1764852653529,-152.36156111,0.00020337,2]
[396234972,1764852653539,-640.24385345,0.00020337,2]
[396234973,1764852653548,-2340.0,0.00020337,2]